Cogmind - Beta 13 @@@ ROGUE MODE // 2024.07.08 @ 13:44:43 Player: ThatBishHoly Result: Destroyed by G-34 Mercenary with Small Laser Performance ------------- Evolutions (0) 0 Regions Visited (1) 200 Robots Destroyed (3) 15 Value Destroyed (83) 83 Prototype IDs (0) 0 Alien Tech Used (0) 0 Bonus (0) 0 TOTAL SCORE: 298 Bonus ------- None Cogmind --------- Core Integrity 0/250 Matter 300/300 Energy 100/100 System Corruption 0% Temperature Cool (6) Movement Core (200) Ox3 Location -10/Materials Parts ------- > --- POWER (1) -------- (None) > --- PROPULSION (2) --- (None) > --- UTILITY (2) ------ Medium Storage Unit > --- WEAPON (2) ------- (None) > --- INVENTORY (10) --- Light Treads Small Storage Unit Large Matter Pod (79) ECM Suite Peak State ------------ > --- POWER ------------ Ion Engine > --- PROPULSION ------- Light Treads Light Treads > --- UTILITY ---------- Small Storage Unit Tractor Beam > --- WEAPON ----------- Small Laser Light Assault Rifle > --- INVENTORY -------- Light Treads [Rating: 7] Favorites ----------- Power Ion Engine Engine Ion Engine Propulsion Light Treads Treads Light Treads Utility Small Storage Unit Device Tractor Beam Storage Small Storage Unit Weapon Light Assault Rifle Energy Gun Small Laser Ballistic Gun Light Assault Rifle Build | -11 -10 ------- Run | Yrd Mat Slots Evolved . | . . Power . | . . Propulsion . | . . Utility . | . . Weapon . | . . Parts Attached 9 | 6 3 Power 2 | 1 1 Engine 2 | 1 1 Core . | . . Reactor . | . . Propulsion 2 | 2 . Treads 2 | 2 . Leg . | . . Wheel . | . . Hover . | . . Flight . | . . Utility 3 | 1 2 Device 1 | . 1 Storage 2 | 1 1 Processor . | . . Hackware . | . . Protection . | . . Artifact . | . . Weapon 2 | 2 . Energy Gun 1 | 1 . Energy Cannon . | . . Ballistic Gun 1 | 1 . Ballistic Cannon . | . . Launcher . | . . Special Weapon . | . . Impact Weapon . | . . Slashing Weapon . | . . Piercing Weapon . | . . Special Melee Weapon . | . . Unidentified Prototypes . | . . Parts Lost 6 | . 6 Power 1 | . 1 Propulsion 2 | . 2 Utility 1 | . 1 Weapon 2 | . 2 Highest Loss Streak 6 | . 6 To Critical Strikes . | . . Average Slot Usage (%) 92 | . 92 Engine 12 | . 12 Treads 26 | . 26 Device 10 | . 10 Storage 14 | . 14 Energy Gun 12 | . 12 Ballistic Gun 13 | . 13 Naked Turns . | . . Heaviest Build 18 | 10 18 Greatest Support 40 | 40 40 Greatest Overweight (x) 3 | . 3 Average Overweight (x) . | . . Largest Inventory Capacity 10 | 8 10 Average Capacity 8 | 7 8 Most Carried 4 | 3 4 Average Carried 1 | . 2 Final Capacity 10 | 8 10 Final Carried 4 | . 4 Class Distribution -------------------- 100% | Mutant Dominant Class ---------------- Mutant | -10/Materials Resources | -11 -10 ----------- Run | Yrd Mat Matter Collected 312 | 260 52 Remotely 19 | . 19 Salvage Created 122 | . 122 Parts 5 | . 5 Haulers Intercepted 1 | . 1 Recyclers Shooed . | . . Parts Field Recycled . | . . Retrieved Matter . | . . Parts Self-Destructed . | . . Prevented . | . . Kills | -11 -10 ------- Run | Yrd Mat Combat Hostiles Destroyed 2 | . 2 Melee 1 | . 1 Guns 1 | . 1 Classes Destroyed 2 | . 2 Hauler 1 | . 1 Grunt 2 | . 2 Best Kill Streak 1 | . 1 Combat Bots Only 1 | . 1 Max Kills in Single Turn 1 | . 1 Gunslinging . | . . Exploded . | . . Melee 1 | . 1 Uniques/NPCs Destroyed . | . . Combat | -11 -10 -------- Run | Yrd Mat Hostile Shots Fired 108 | . 108 Missed 33 | . 33 Damage Taken 876 | . 876 Core 259 | . 259 Absorbed by Shields . | . . Core Remaining (%) 100 | 100 . Volleys Fired 26 | . 26 Largest 2 | . 2 Hottest 60 | . 60 Shots Fired 52 | . 52 Gun 52 | . 52 Cannon . | . . Launcher . | . . Special . | . . Kinetic 26 | . 26 Thermal 26 | . 26 Explosive . | . . Electromagnetic . | . . Robot Hit Streak 6 | . 6 Robot Miss Streak 6 | . 6 Penetration Max . | . . Secondary Targets . | . . Shots Hit Robots 26 | . 26 Core Hits 7 | . 7 Critical Kills . | . . Critical Parts Destroyed . | . . Critical Strikes . | . . Melee Attacks . | . . Impact . | . . Slashing . | . . Piercing . | . . Sneak Attacks . | . . Combat Hostiles . | . . Follow-up Attacks . | . . Damage Inflicted 301 | . 301 Guns 265 | . 265 Cannons . | . . Explosions . | . . Melee . | . . Ramming 36 | . 36 Kinetic 97 | . 97 Thermal 168 | . 168 Explosive . | . . Electromagnetic . | . . Impact . | . . Slashing . | . . Piercing . | . . Highest Corruption . | . . Average Corruption . | . . Corruption Purged . | . . Corruption Blocked . | . . Overload Shots . | . . Overflow Damage . | . . Projectiles . | . . Explosions . | . . Melee . | . . Knockbacks . | . . Impact . | . . Kinetic . | . . Secondary . | . . Self-Inflicted Damage 2 | . 2 Shots . | . . Rammed 16 | . 16 Targets Rammed 17 | . 17 Kicked . | . . Crushed 1 | . 1 Highest Temperature 170 | . 170 Average Temperature 68 | . 68 Received Heat Transfer 507 | . 507 Siege Activations . | . . Robots Corrupted . | . . Combat Hostiles . | . . Parts Fried . | . . Impact Corruptions . | . . Robots Melted . | . . Combat Hostiles . | . . Parts Melted . | . . Heat Transferred 375 | . 375 Parts Sabotaged . | . . Parts Stolen . | . . Parts Stripped . | . . Power Chain Reactions . | . . Alert | -11 -10 ------- Run | Yrd Mat Peak Influence 37 | . 37 Initial . | . . Average 15 | . 17 Maximum Alert Level . | . . Low Security (%) 100 | 100 100 Level 1 . | . . Level 2 . | . . Level 3 . | . . Level 4 . | . . Level 5 . | . . High Security . | . . Max Security . | . . Squads Dispatched 2 | . 2 Investigation 1 | . 1 Extermination . | . . Reinforcement 1 | . 1 Assault . | . . Garrison . | . . Intercept . | . . Searches Triggered . | . . Construction Impeded . | . . Haulers Reinforced . | . . Active Scanning Responses . | . . Cargo Convoy Interrupts . | . . Stealth | -11 -10 --------- Run | Yrd Mat Distress Signals 1 | . 1 Communications Jammed . | . . Distress Signals . | . . Times Spotted 9 | . 9 Peak Tracking Total 4 | . 4 Tactical Retreats . | . . Traps | -11 -10 ------- Run | Yrd Mat Traps Triggered . | . . Indirectly . | . . Trap Hack Attempts . | . . Triggered . | . . Disarmed . | . . Reprogrammed 3 | . 3 Reused 1 | . 1 Traps Extracted . | . . Installed . | . . Triggered 1 | . 1 Machines | -11 -10 ---------- Run | Yrd Mat Machines Disabled . | . . Max in Single Turn . | . . Machines Repaired . | . . Machines Dismantled . | . . Machines Sabotaged . | . . Overloaded Fab Kills . | . . Hacking | -11 -10 --------- Run | Yrd Mat Machines Accessed 1 | . 1 Terminals 1 | . 1 Fabricators . | . . Repair Stations . | . . Recycling Units . | . . Scanalyzers . | . . Garrison Access . | . . Total Hacks 3 | . 3 Successful 2 | . 2 Failed 1 | . 1 Catastrophic . | . . Database Lockouts . | . . Manual . | . . Terminals 3 | . 3 Fabricators . | . . Repair Stations . | . . Recycling Units . | . . Scanalyzers . | . . Garrison Access . | . . Terminal Hacks 2 | . 2 Locate Traps 1 | . 1 Reprogram Traps 1 | . 1 Fabricator Hacks . | . . Repair Station Hacks . | . . Recycling Unit Hacks . | . . Scanalyzer . | . . Garrison Access Hacks . | . . Unauthorized Hacks . | . . Terminals . | . . Fabricators . | . . Repair Stations . | . . Recycling Units . | . . Scanalyzers . | . . Garrison Access . | . . Data Cores Recovered . | . . Used . | . . Hacking Detections 1 | . 1 Full Trace Events 1 | . 1 Feedback Events . | . . Feedback Blocked . | . . Robot Schematics Acquired . | . . Robots Built . | . . Authchips . | . . Time . | . . Total Robot Build Rating . | . . Part Schematics Acquired . | . . Parts Built . | . . Authchips . | . . Time . | . . Total Part Build Rating . | . . Parts Repaired . | . . Time . | . . Parts Recycled . | . . Recycled Matter . | . . Retrieved Matter . | . . Retrieved Components . | . . Parts Scanalyzed . | . . Part Schematics Acquired . | . . Parts Damaged . | . . Bothacking | -11 -10 ------------ Run | Yrd Mat Used RIF Installer . | . . Robots Hacked . | . . Non-combat . | . . Combat . | . . Robot Hacks Applied . | . . Relay Couplers Released . | . . Fabnet Peak Effective % . | . . Robots Rewired . | . . Allies Hacked . | . . Hacks Repelled . | . . Allies | -11 -10 -------- Run | Yrd Mat Total Allies . | . . Largest Group . | . . Highest-Rated Group . | . . Highest-Rated Ally . | . . Total Orders . | . . Ally Attacks . | . . Total Damage . | . . Kills . | . . Allies Corrupted . | . . Allies Melted . | . . Intel | -11 -10 ------- Run | Yrd Mat Robot Analysis Total . | . . Derelict Logs Recovered . | . . Drone Launches . | . . Drone Recoveries . | . . Exploration | -11 -10 ------------- Run | Yrd Mat Turns Passed 680 | 78 602 Spaces Moved 352 | 47 305 Core 11 | 7 4 Treads 341 | 40 301 Legs . | . . Wheels . | . . Hover . | . . Flight . | . . Fastest Speed 50 | 50 160 Average Speed 158 | 143 160 Slowest Speed 200 | 160 200 Overloaded Moves . | . . Propulsion Burnouts . | . . Robots Hopped . | . . Cave-ins Triggered . | . . Exploration Rate (%) 22 | 5 39 Regions Visited 1 Branch Regions . Pre-discovered Areas . | . . Known Exits Taken . | . . Unknown Exits Taken 1 | 1 . Scrap Searched . | . . Spaces Dug . | . . Terrain Destroyed . | . . Melee . | . . Projectile . | . . AOE . | . . Terrain Rammed . | . . Walls Destroyed . | . . Machines Disabled . | . . Actions | -11 -10 --------- Run | Yrd Mat Total 416 | 58 358 Wait . | . . Move 351 | 46 305 Hop . | . . Pick Up 12 | 6 6 Fast Attach . | . . Attach 7 | 6 1 Detach . | . . Swap 2 | . 2 Drop 1 | . 1 Fire 26 | . 26 Melee . | . . Ram 5 | . 5 Kick . | . . Crush 12 | . 12 Escape Stasis . | . . Rewire . | . . Trap . | . . Miscellaneous . | . . Route ------- -11/Scrapyard -10/Materials History --------- Turn | Location | Event 4 | -11/Scrapyard | Discovered new exit (range 15) 79 | -11/Scrapyard | Entered Materials 311 | -10/Materials | Build established: Mutant 650 | -10/Materials | Core integrity fell below 50% 670 | -10/Materials | Core integrity fell below 20% 681 | -10/Materials | Destroyed by G-34 Mercenary with Small Laser Last Messages --------------- 00612_ U-05 Engineer lays Concrete. 00633_ Ion Engine destroyed. 00633_ Critical hit (Burn: +37). 00634_ Sml. Laser destroyed. 00637_ Tractor Beam destroyed. 00641_ Slammed into G-47 Trooper. 00649_ Crushed G-47 Trooper. 00649_ G-47 Trooper destroyed. 00650_ Acquired 23 matter. 00653_ Lgt. Treads destroyed. 00653_ U-05 Engineer destroyed. 00654_ Slammed into G-34 Mercenary. 00657_ Lgt. Assault Rifle destroyed. 00657_ Slammed into G-34 Mercenary. 00662_ R-06 Scavenger collects Terrain Scan Processor. 00663_ Lgt. Treads destroyed. 00666_ R-06 Scavenger collects Terrain Scanner. 00668_ Slammed into G-34 Mercenary. 00669_ R-06 Scavenger collects Wheel. 00674_ Slammed into G-34 Mercenary. Map ----- +----------------------------------------------------+ | ???????????????????????????????????# # # | | ???????????????????????????????????# # # | | ???????????????????????????????????# # # | | ???????????????????????????????????# # # | | ???????????????????????????????????########### # | | ??????????????????????????????#######????????# # | | ???????????????????? ########## #????????# # | | ??????????????????? #????????# # | | ??????????????????? ########## # | | ??????????????????? % | | ??????????????????????????##### ######### | | ????????????????????????########### #???????# | | ????????????????????????# ## #???????# | | ????????????????????????#!! """ ## #???????# | | ??????????????###########! """ ## #???????###### | | ??????????????# ##! """ ## #????????????? | | ??????????????# T ## ## ####?????????? | | ??????????????# #######+### #?????????? | | ??????????????# # #?????????? | | ??????????????# # #?????????? | | ??????????????# """ # %= #?????????? | | ??????????????# """ # ####### #?????????? | | ##########????# """ # t#?????#######?????????? | | ! #????# # #?????????????????????? | | #########+##### #?????????????????????? | | # g@ #?????????????????????? | | + ar#?????????????????????? | | """ " " # #?????????????????????? | | """ "R" #+##+########## g#?????????????????????? | | """ """ # ######## #?????????????????????? | | # ! # # #?????? *#???????????? | | ########## # # #### =!#???????????? | | ?????????# # # !%! ????????? | | ?????????# # + =!= ????????? | | ?????????# # "" # ! ????????? | | ?????????######## Y" #################?????????? | | ????????????????# "" #?????????????????????????? | | ????????????????# ??????????????????????????? | | ????????????????#######??????????????????????????? | | | | | | | | | | | | | | | | | | | | | | | +----------------------------------------------------+ Best States ------------- Heat Dissipation 25 Energy Generation 10 Energy Capacity 250 Matter Stores 300 Matter Capacity 300 Sight Range 16 Terrain Scan Density 10 Evasion (%) 40 Recoil Reduction 2 Item Schematics ----------------- None Robot Schematics ------------------ None Fabricated ------------ Nothing Alien Tech Used ----------------- None Achievements -------------- None Challenges ------------ None Game ------ Seed PlasmaPhysicsDetector Manual? 0 Play Time 00:07:41 Cumulative 32.2 hours Start 2024.07.08 @ 13:37:33 End 2024.07.08 @ 13:44:43 Sessions 1 Manual Loads 0 Difficulty Rogue Special Mode None Game No. 102 Rogue 102 Adventurer 0 Explorer 0 Win Type - Total 0 Types 0/0/0/0/0/0/0/0/0 Lore% 18 Gallery% 33 Achievement% 23 Wizard Run 0 Options --------- Layout 0 ASCII 0 Keyboard 0 Movement Arrows Keybinds 0 Fullscreen 1 Font 12/Smallcaps Map View 38x28 Zoom Use 100% Tactical HUD 1 Map Filters NONE Filters NONE Steam SD RUN: 1aec0636-b07a-48fb-9637-88948a033716